{"text_format":"1","workbook":"xlsx","n_sheets":1,"sheets":["Foglio1"],"not_rendered":{"charts":0,"images":0,"macros":0,"external_links":0,"defined_names":0,"comments":0,"pivot_tables":0},"unopened":[],"bounds":{"document_bytes":16777216,"sheet_cells":100000,"rows_first":2000,"rows_last":500,"rows_between":2000,"halvings":0,"cell_chars":16384,"cell_head_chars":4096},"cells_cut":0,"cells_raw":0,"read":"whole","date_system":"1900"}

{"sheet":"Foglio1","index":0,"n_rows":206,"n_cols":29,"rows_kept":206,"cut":false,"hidden":false,"merged":[[3,1,3,27]]}
[]
[]
[]
["                  CLASSIFICA ASSOLUTA INDIVIDUALE FEMMINILE MASCHILE XXXIII CIRCUITO MASTER OLD STARS 2019","CLASSIFICA ASSOLUTA INDIVIDUALE FEMMINILE MASCHILE XXXVI CIRCUITO VOLKL MASTER  OLD STARS 2023"]
[]
[]
[]
[]
[null,"FEMMINILE DAME C6 ","Anno","Società Old Stars","Società Fisi","Temù","Borno","Borno "," Gerola"," Gerola","Aprica","Aprica","Comb.Aprica","Lizzola","Lizzola","Aprica","Aprica","Temu","Chiesa","Chiesa","Chiesa","Comb.Chiesa","Tonale","Tonale","Comb.Tonale","Bonus","Totale","Classifica"]
[null,"dal 1947 e precedenti"]
[null,"MONTINI SILVA",1947,"SC Cernobbio","SC Cernobbio",100,100,100,100,100,100,100,100,100,100,80,80,100,80,null,null,null,null,null,null,30,{"$f":"SUM(F11:Z11)","v":1370},1]
[null,"MAGLIA MARIKA",1947,"SC Cernobbio","SC Cernobbio",null,null,null,80,80,60,60,60,60,60,null,null,null,60,80,80,80,100,100,100,30,{"$f":"SUM(F12:Z12)","v":1090},2]
[null,"CROTTI CATERINA",1947,"SC Cernobbio","SC Retike Ski",null,null,null,null,null,null,null,null,null,null,100,100,null,100,100,100,100,null,null,null,10,{"$f":"SUM(F13:Z13)","v":610},3]
[null,"PEZZOTTA LUCIANA ",1942,"SC La Recastello",null,null,1,80,null,null,80,80,80,80,80,null,null,null,null,null,null,null,null,null,null,10,{"$f":"SUM(F14:Z14)","v":491},4]
[]
[null,"FEMMINILE DAME C5 ","Anno","Società Old Stars","Società Fisi","Temù","Borno","Borno "," Gerola"," Gerola","Aprica","Aprica","Comb.Aprica","Lizzola","Lizzola","Aprica","Aprica","Temu","Chiesa","Chiesa","Chiesa","Comb.Chiesa","Tonale","Tonale","Comb.Tonale","Bonus","Totale","Classifica"]
[null,"dal 1948 al 1952"]
[null,"CARRARA GRAZIELLA",1950,"SC La Recastello",null,100,100,100,100,100,100,100,100,null,null,100,100,100,100,100,100,100,100,100,100,60,{"$f":"SUM(F18:Z18)","v":1860},1]
[null,"BONZANI MILENA",1949,"SC Cernobbio",null,80,80,80,80,80,80,60,80,null,null,80,80,80,80,80,80,80,60,80,80,60,{"$f":"SUM(F19:Z19)","v":1460},2]
[null,"CONSONNI MARILU'",1948,"SC Cernobbio","SC Cernobbio",60,50,50,50,50,50,50,50,100,100,60,60,60,60,60,60,60,80,60,60,60,1190,3]
[null,"GAMBA JONNE",1950,"SC La Recastello",null,null,60,60,45,45,45,45,45,80,80,null,null,null,50,50,50,50,50,50,50,30,{"$f":"SUM(F21:Z21)","v":885},4]
[null,"CASTELLINI IVANA",1951,"SC Cernobbio","SC Cernobbio",null,null,null,60,60,60,80,60,null,null,null,null,null,null,null,null,null,null,null,null,null,{"$f":"SUM(F22:Z22)","v":320},5]
[]
[null,"FEMMINILE DAME C4 ","Anno","Società Old Stars","Società Fisi","Temù","Borno","Borno "," Gerola"," Gerola","Aprica","Aprica","Comb.Aprica","Lizzola","Lizzola","Aprica","Aprica","Temu","Chiesa","Chiesa","Chiesa","Comb.Chiesa","Tonale","Tonale","Comb.Tonale","Bonus","Totale","Classifica"]
[null,"dal 1951 al 1957"]
[null,"MATTARELLI BRUNELLA",1957,"SC Ski Mountain","SC Ski Mountain",100,100,100,80,80,60,80,80,100,100,80,100,100,100,100,100,100,80,80,80,60,1720,1]
[null,"BELOTTI P.ANGELA",1956,"SC La Recastello",null,80,80,80,60,60,50,50,50,80,80,60,60,null,80,80,60,60,50,50,50,60,{"$f":"SUM(F27:Z27)-K27","v":1230},2]
[null,"ZUGNONI MARISA",1956,"SC Cernobbio",null,null,null,null,100,100,100,100,100,null,null,null,null,null,null,60,80,80,100,100,100,30,{"$f":"SUM(F28:Z28)","v":1050},3]
[null,"ZUGNONI DANIELA",1955,"SC Cernobbio",null,null,null,null,50,50,80,60,60,null,null,100,80,null,null,50,50,50,60,60,60,30,{"$f":"SUM(F29:Z29)","v":840},4]
[null,"CAPPELLA ANNA",1955,"SC La Recastello",null,null,60,60,null,null,45,45,45,60,60,50,50,null,60,45,45,45,45,45,45,30,{"$f":"SUM(F30:Z30)","v":835},5]
[]
[null,"FEMMINILE DAME C3 ","Anno","Società Old Stars","Società Fisi","Temù","Borno","Borno "," Gerola"," Gerola","Aprica","Aprica","Comb.Aprica","Lizzola","Lizzola","Aprica","Aprica","Temu","Chiesa","Chiesa","Chiesa","Comb.Chiesa","Tonale","Tonale","Comb.Tonale","Bonus","Totale","Classifica"]
[null,"dal 1958 al 1962"]
[null,"SANTAMBROGIO CRISTINA",1958,"SC Ski Mountain","SC Ski Mountain",100,100,1,100,100,100,100,100,100,100,100,100,80,100,100,100,100,100,100,100,60,{"$f":"SUM(F34:Z34)-H34-R34","v":1860},1]
[null,"BIROLINI MARINA",1961,"SC Ski Mountain","SC Ski Mountain",1,50,80,50,60,80,80,80,80,80,50,60,100,60,60,80,80,80,80,80,60,{"$f":"SUM(F35:Z35)-F35-G35","v":1380},2]
[null,"COMINELLI LIVIA",1958,"SC La Recastello",null,80,60,60,60,50,60,60,60,60,60,80,50,null,80,80,60,60,60,50,50,60,{"$f":"SUM(F36:Z36)-J36","v":1190},3]
[null,"MERELLI MARIA LUISA",1958,"SC La Recastello",null,60,80,100,80,80,null,null,null,null,null,60,80,60,null,null,null,null,50,60,60,30,{"$f":"SUM(F37:Z37)","v":800},4]
[]
[null,"FEMMINILE DAME C2","Anno","Società Old Stars","Società Fisi","Temù","Borno","Borno "," Gerola"," Gerola","Aprica","Aprica","Comb.Aprica","Lizzola","Lizzola","Aprica","Aprica","Temu","Chiesa","Chiesa","Chiesa","Comb.Chiesa","Tonale","Tonale","Comb.Tonale","Bonus","Totale","Classifica"]
[null,"dal 1963 al 1967"]
[null,"MERELLI DELIA",1964,"SC La Recastello",null,100,100,100,60,60,null,null,null,null,null,80,80,100,null,null,null,null,null,null,null,30,{"$f":"SUM(F41:Z41)","v":710},1]
[null,"FUMAGALLI P.ANGELA",1963,"SC La Recastello","SC OS Noi",null,null,null,null,null,null,null,null,null,null,100,100,null,null,null,null,null,100,100,100,null,{"$f":"SUM(F42:Z42)","v":500},2]
[null,"CASSINA ANTONIETTA",1966,"SC Cernobbio",null,null,null,null,null,null,100,100,100,null,null,null,null,null,null,null,null,null,null,null,null,null,{"$f":"SUM(F43:Z43)","v":300},3]
[null,"COLOMBO MELISSA",1967,"SC Ski Mountain","SC Ski Mountain",null,null,null,100,100,null,null,null,null,null,null,null,null,null,null,null,null,null,null,null,null,{"$f":"SUM(F44:Z44)","v":200},4]
[null,"FERRARIO RENATA",1966,"SC Cernobbio","SC  Erba",null,null,null,80,80,null,null,null,null,null,null,null,null,null,null,null,null,null,null,null,null,{"$f":"SUM(F45:Z45)","v":160},5]
[]
[null,"FEMMINILE DAME C1","Anno","Società Old Stars","Società Fisi","Temù","Borno","Borno "," Gerola"," Gerola","Aprica","Aprica","Comb.Aprica","Lizzola","Lizzola","Aprica","Aprica","Temu","Chiesa","Chiesa","Chiesa","Comb.Chiesa","Tonale","Tonale","Comb.Tonale","Bonus","Totale","Classifica"]
[null,"dal 1968 al 1973"]
[null,"MOLLICA ALESSANDRA",1972,"SC Ski Mountain","SC Ski Mountain",null,null,null,null,null,100,100,100,null,null,100,100,100,null,null,null,null,100,100,100,10,{"$f":"SUM(F49:Z49)","v":910},1]
[null,"GENESINI GRAZIA",1970,"SC Cernobbio",null,null,null,null,null,null,null,null,null,null,null,null,null,null,100,100,100,100,null,null,null,null,{"$f":"SUM(F50:Z50)","v":400},2]
[null,"CASSINA ANNA",1969,"SC Cernobbio",null,null,null,null,null,null,80,80,80,null,null,null,null,null,null,null,null,null,null,null,null,null,{"$f":"SUM(F51:Z51)","v":240},3]
[]
[null,"SUPER 85","Anno","Società Old Stars","Società Fisi","Temù","Borno","Borno "," Gerola"," Gerola","Aprica","Aprica","Comb.Aprica","Lizzola","Lizzola","Aprica","Aprica","Temu","Chiesa","Chiesa","Chiesa","Comb.Chiesa","Tonale","Tonale","Comb.Tonale","Bonus","Totale","Classifica"]
[null,"dal 1937 e precedenti"]
[null,"CESATI SANDRO",1936,"SC Ski Mountain","SC Cristal Ski",100,80,null,100,100,80,100,100,null,null,1,100,null,null,100,100,100,100,100,100,30,{"$f":"SUM(F55:Z55)","v":1391},1]
[null,"MORO  MARIO",1934,"SC Ski Mountain",null,null,100,null,null,null,100,80,80,null,null,null,null,null,null,null,null,null,null,null,null,null,{"$f":"SUM(F56:Z56)","v":360},2]
[null,"CANTU' ROBERTO",1930,"SC Cernobbio","SC Cernobbio",null,null,null,null,80,50,50,50,null,null,null,null,null,null,null,null,null,null,null,null,null,{"$f":"SUM(F57:Z57)","v":230},3]
[null,"CASSINA EUGENIO",1937,"SC Cernobbio",null,null,null,null,null,null,60,60,60,null,null,null,null,null,null,null,null,null,null,null,null,null,{"$f":"SUM(F58:Z58)","v":180},4]
[]
[null,"SUPER 80","Anno","Società Old Stars","Società Fisi","Temù","Borno","Borno "," Gerola"," Gerola","Aprica","Aprica","Comb.Aprica","Lizzola","Lizzola","Aprica","Aprica","Temu","Chiesa","Chiesa","Chiesa","Comb.Chiesa","Tonale","Tonale","Comb.Tonale","Bonus","Totale","Classifica"]
[null,"dal 1938 al 1942"]
[null,"VALLE' G.ANTONIO",1939,"SC Ski Mountain","SC Ski Mountain",100,80,80,60,60,60,80,80,100,100,100,100,100,100,100,100,100,80,80,80,60,1680,1]
[null,"BATTISTINI FELICE",1941,"SC Ski Mountain","SC Ski Mountain",null,100,100,100,100,80,100,100,80,80,null,null,null,null,null,null,null,100,100,100,30,{"$f":"SUM(F63:Z63)","v":1170},2]
[null,"SPLUGA ENZO",1942,"SC La Recastello","SC Orezzo",80,60,null,50,50,null,null,null,null,null,80,80,null,80,80,80,80,60,60,60,30,930,3]
[null,"GILARDONI FRANCESCO",1940,"SC Cernobbio","SC Cernobbio",60,null,null,45,45,45,45,45,60,60,50,50,null,60,60,60,60,50,50,50,30,925,4]
[null,"PIRAS ORIO",1941,"SC Ski Mountain","SC Ski Mountain",null,null,null,80,80,100,60,60,null,null,null,null,80,null,null,null,null,null,null,null,10,470,5]
[null,"TRAINI SANDRO",1938,"SC La Recastello",null,null,null,null,null,null,50,50,50,null,null,60,60,null,null,null,null,null,null,null,null,null,270,6]
[]
[null,"SUPER 75","Anno","Società Old Stars","Società Fisi","Temù","Borno","Borno "," Gerola"," Gerola","Aprica","Aprica","Comb.Aprica","Lizzola","Lizzola","Aprica","Aprica","Temu","Chiesa","Chiesa","Chiesa","Comb.Chiesa","Tonale","Tonale","Comb.Tonale","Bonus","Totale","Classifica"]
[null,"dal 1943 al 1947"]
[null,"CATTANEO ACHILLE",1943,"SC Ski Mountain","SC Pontedilegno",60,40,80,100,60,50,60,60,80,100,60,60,100,50,80,80,80,100,100,100,60,1470,1]
[null,"FUMASONI ROBERTO",1946,"SC Cernobbio","SC Valli del Bitto",80,100,100,80,50,60,50,50,null,null,100,100,60,80,60,60,60,60,50,50,60,{"$f":"SUM(F72:Z72)","v":1310},2]
[null,"BAVO GIUSEPPE",1946,"SC Cernobbio","SC Valli del Bitto",100,null,null,60,80,100,80,100,null,null,80,80,null,100,100,100,100,null,null,null,30,1110,3]
[null,"NOVELLI NANDO",1947,"SC Ski Mountain","SC Ski Mountain",40,50,45,40,40,36,36,36,60,60,36,36,80,45,45,40,40,80,80,80,60,993,4]
[null,"GARBELLINI LINO",1947,"SC Cernobbio","SC Retike Ski",45,80,60,45,100,45,45,45,null,null,45,40,50,40,50,50,50,40,45,45,60,980,5]
[null,"PELIZZARI GIANGIACOMO",1943,"SC Cernobbio","SC OS Noi",36,60,40,36,36,29,29,29,40,50,32,32,40,36,36,36,36,36,36,36,60,743,6]
[null,"FERRI GIUSEPPE",1944,"SC La Recastello","SC Orezzo",50,1,50,null,null,40,40,40,100,80,40,45,45,null,40,45,45,null,null,null,30,691,7]
[null,"BAVO NATALINO",1943,"SC Cernobbio","SC Valli del Bitto",null,null,null,50,45,80,100,80,null,null,50,50,null,60,null,null,null,null,null,null,10,525,8]
[null,"BORIERO GIANNI",1946,"SC Cernobbio","SC Retike Ski",29,null,null,29,1,24,24,24,null,null,29,29,36,null,29,29,29,26,26,26,30,420,9]
[null,"RUFFINONI ALDO",1945,"SC La Recastello",null,null,null,null,null,null,32,32,32,50,40,null,null,null,null,null,null,null,50,60,60,10,366,10]
[null,"MONTI PRIMO",1947,"SC Cernobbio","SC Cernobbio",24,null,null,26,29,20,20,20,29,32,1,1,null,29,26,26,26,24,1,1,30,365,11]
[null,"FERRARI DARIO",1947,"SC Ski Mountain","SC Ski Mountain",26,32,null,32,32,null,null,null,36,36,null,null,null,null,null,null,null,29,29,29,10,291,12]
[null,"AGAZZI LUCIO",1947,"SC Ski Mountain","SC Ski Mountain",32,null,null,null,null,null,null,null,45,45,null,null,null,null,null,null,null,45,40,40,10,257,13]
[null,"BOMBARDIERI ENZO",1945,"SC Cernobbio","SC Snow Eagle",null,null,null,null,null,26,26,26,null,null,null,null,null,32,32,32,32,null,null,null,10,216,14]
[null,"MODESTI ATTILIO",1946,"SC Ski Mountain",null,null,36,1,null,null,22,22,22,null,null,null,null,null,null,null,null,null,null,null,null,null,103,15]
[null,"CASSINA EZIO",1947,"SC Cernobbio",null,null,null,null,1,1,null,null,null,null,null,null,null,null,null,null,null,null,32,32,32,null,98,16]
[null,"BELOTTI NELLO",1946,"SC La Recastello",null,null,45,null,null,null,null,null,null,32,null,null,null,null,null,null,null,null,null,null,null,null,77,17]
[null,"MOONEY ENRICO",1946,"SC Cernobbio",null,null,null,null,24,26,null,null,null,null,null,null,null,null,null,null,null,null,null,null,null,null,50,18]
[]
[null,"SUPER 70","Anno","Società Old Stars","Società Fisi","Temù","Borno","Borno "," Gerola"," Gerola","Aprica","Aprica","Comb.Aprica","Lizzola","Lizzola","Aprica","Aprica","Temu","Chiesa","Chiesa","Chiesa","Comb.Chiesa","Tonale","Tonale","Comb.Tonale","Bonus","Totale","Classifica"]
[null,"dal 1948 al 1952"]
[null,"CURTONI GIORGIO",1951,"SC Ski Mountain","SC Ski Mountain",1,100,100,100,100,100,100,100,null,null,100,100,100,100,100,32,80,100,100,100,60,{"$f":"SUM(F92:Z92)","v":1673},1]
[null,"ZUGNONI LIVIO",1951,"SC Cernobbio","SC Valli del Bitto",100,80,80,80,60,80,80,80,100,100,80,80,80,80,80,100,100,80,80,80,60,1600,2]
[null,"FERRI CARLO",1949,"SC Cernobbio","SC Stage Master",null,36,60,60,80,60,60,60,45,50,60,60,60,60,60,80,60,50,50,50,60,1125,3]
[null,"BERERA LINO",1949,"SC La Recastello",null,80,50,50,50,40,50,45,50,60,80,50,50,50,50,45,45,45,45,45,45,60,1000,4,{"$f":"SUM(F95:AA95)","v":2085}]
[null,"BARONCHELLI G.MARIA",1952,"SC La Recastello","SC Orezzo",40,60,45,null,null,45,50,45,80,45,40,36,null,null,50,50,50,40,24,32,30,{"$f":"SUM(F96:Z96)","v":762},5]
[null,"BUZZETTI ALFREDO",1949,"SC Ski Mountain","SC Ski Mountain",null,29,32,45,50,40,32,36,null,null,36,32,45,45,36,36,36,20,26,22,30,628,6]
[null,"IMBERTI G.BATTISTA",1949,"SC La Recastello","SC Orezzo",50,32,36,40,32,36,40,40,36,40,null,null,null,null,null,null,null,36,40,40,30,528,7]
[null,"ROSSI MARCELLO",1951,"SC Ski Mountain","SC Cristal Ski",45,40,null,29,29,29,29,29,null,null,26,29,null,null,40,60,40,22,20,20,30,517,8]
[null,"CONFALONIERI NORBERTO",1952,"SC Ski Mountain","SC La Neve",36,26,null,32,36,26,24,24,40,36,29,26,null,null,32,40,32,null,null,null,30,469,9]
[null,"AMBROSIONI G.BATTISTA",1952,"SC Ski Mountain","SC Ski Mountain",null,24,29,26,24,24,26,26,32,32,24,24,null,null,null,null,null,24,29,24,30,398,10]
[null,"MODANESI ROMEO",1951,"SC Ski Mountain","SC Ski Mountain",60,null,null,null,null,null,null,null,50,60,45,45,40,null,null,null,null,26,32,26,10,394,11]
[null,"CEMMI FEDERICO",1951,"SC Ski Mountain","SC Corte Franca",null,45,40,null,null,32,36,32,null,null,32,40,null,null,null,null,null,29,22,29,10,347,12]
[null,"BIELLA GIUSEPPE",1950,"SC Ski Mountain","SC Cristal Ski",29,null,null,1,40,22,22,22,null,null,22,22,null,null,29,29,29,16,16,16,30,345,13]
[null,"LOCATELLI VALERIO",1952,"SC Cernobbio","SC Marzotto",null,null,null,null,null,null,null,null,null,null,null,null,null,null,null,null,null,60,60,60,null,180,14]
[null,"MAGNI GIGI",1950,"SC La Recastello","SC Orezzo",null,null,null,null,null,null,null,null,null,null,null,null,null,null,null,null,null,32,36,36,null,104,15]
[null,"TESTA CLAUDIO",1949,"SC La Recastello",null,32,null,null,null,null,null,null,null,29,29,null,null,null,null,null,null,null,null,null,null,null,90,16]
[null,"MAXENTI RENZO",1948,"SC Cernobbio","SC Valli del Bitto",null,null,null,36,45,null,null,null,null,null,null,null,null,null,null,null,null,null,null,null,null,81,17]
[null,"FRACCHIA MAURIZIO",1948,"SC Cernobbio",null,null,null,null,null,null,null,null,null,null,null,null,null,null,null,26,26,26,null,null,null,null,78,18]
[null,"MANZOTTI MARCO",1952,"SC Ski Mountain",null,null,null,null,null,null,null,null,null,null,null,null,null,null,null,null,null,null,18,18,18,null,54,19]
[null,"RIVOLTA FERNANDO",1950,"SC GEM Monza","SC GEM Monza",null,null,null,22,26,null,null,null,null,null,null,null,null,null,null,null,null,null,null,null,null,48,20]
[null,"CALLONI MARCO",1949,"SC GEM Monza","SC GEM Monza",null,null,null,24,22,null,null,null,null,null,null,null,null,null,null,null,null,null,null,null,null,46,21]
[]
[null,"SUPER  65","Anno","Società Old Stars","Società Fisi","Temù","Borno","Borno "," Gerola"," Gerola","Aprica","Aprica","Comb.Aprica","Lizzola","Lizzola","Aprica","Aprica","Temu","Chiesa","Chiesa","Chiesa","Comb.Chiesa","Tonale","Tonale","Comb.Tonale","Bonus","Totale","Classifica"]
[null,"dal 1953 al 1957"]
[null,"CARRARA ADRIANO",1957,"SC La Recastello","SC Orezzo",80,100,100,80,80,80,80,80,100,80,80,60,50,80,80,100,80,80,80,80,60,{"$f":"SUM(F116:Z116)-Q116-R116","v":1580},1]
[null,"SABBADINI MARIO",1955,"SC La Recastello","SC Orezzo",60,null,null,100,100,60,60,60,60,60,60,80,80,100,100,80,100,100,100,100,60,{"$f":"SUM(F117:Z117)","v":1520},2]
[null,"GANDOSSI DANILO",1956,"SC La Recastello","SC Orezzo",50,80,80,45,60,50,50,50,50,50,50,50,60,60,60,60,60,60,60,60,60,{"$f":"SUM(F118:Z118)-F118-I118","v":1110},3]
[null,"BERGAMELLI G.PIETRO",1954,"SC Ski Mountain","SC Enjoy SkiTeam",100,null,null,null,null,100,100,100,80,100,100,100,100,null,null,null,null,null,null,null,30,{"$f":"SUM(F119:Z119)","v":910},4]
[null,"BALZARETTI ANGELO",1955,"SC Cernobbio","SC Cernobbio",40,60,60,60,45,45,45,45,45,45,null,null,40,45,50,50,50,36,32,36,60,{"$f":"SUM(F120:Z120)","v":889},5]
[null,"LOMBARDI CARMINE",1955,"SC La Recastello","SC Orezzo",29,36,45,24,26,32,29,29,40,36,36,36,36,32,32,40,36,32,29,32,60,{"$f":"SUM(F121:Z121)-I121-J121","v":677},6]
[null,"MAGNI MAURIZIO",1953,"SC Ski Mountain","SC GB Ski Team",36,50,40,40,40,36,36,36,null,null,1,null,null,40,36,29,32,50,45,45,30,{"$f":"SUM(F122:Z122)","v":622},7]
[null,"SALVADORI FEDERINO",1955,"SC Cernobbio","SC Stage Master",32,40,50,40,24,29,32,32,null,null,null,null,null,50,40,36,40,40,40,40,30,595,8]
[null,"ALBRICCI BORTOLO",1956,"SC La Recastello","SC Gromo",20,1,36,29,32,26,24,26,36,32,26,24,null,null,45,45,45,20,36,24,60,587,9]
[null,"GOTTI GIORDANO",1953,"SC Cernobbio","SC Retike Ski",24,32,29,26,29,20,20,20,null,null,24,26,29,29,26,26,26,22,22,20,60,510,10]
[null,"MAXENTI VINCENZO",1957,"SC Ski Mountain","SC Ski Mountain",22,29,32,32,36,18,18,18,null,null,20,20,32,24,24,20,22,26,24,26,60,503,11]
[null,"BARANA ENRICO",1953,"SC Ski Mountain","SC Ski Mountain",26,45,1,null,null,24,22,22,null,null,22,22,null,26,20,22,20,24,20,22,30,368,12]
[null,"ZERBONI FAUSTO",1953,"SC Cernobbio","SC Retike Ski",null,null,null,null,null,22,26,24,null,null,29,null,26,36,29,32,29,29,26,29,30,367,13]
[null,"GAMBA BRUNO",1953,"SC La Recastello","SC Os Noi",null,null,null,null,null,null,null,null,32,40,45,45,45,null,null,null,null,45,50,50,10,362,14]
[null,"MELCHIORI LUCIANO",1953,"SC Ski Mountain","SC Cassano M.",null,null,null,null,null,40,40,40,null,null,40,40,null,null,null,null,null,null,null,null,null,200,15]
[null,"BOILLAT ERNESTO",1957,"SC Cernobbio",null,null,null,null,null,null,null,null,null,null,null,1,1,null,22,18,18,18,18,18,18,10,142,16]
[null,"ZUGNONI MARCO",1953,"SC Cernobbio",null,null,null,null,50,50,null,null,null,null,null,null,29,null,null,null,null,null,null,null,null,null,129,17]
[null,"BORRA CLEMENTE",1956,"SC Cernobbio",null,null,null,null,22,22,null,null,null,null,null,null,null,null,null,22,24,24,null,null,null,null,114,18]
[null,"MUNARETTO MAURIZIO",1954,"SC Ski Mountain","SC Cuvignone",null,null,null,null,null,null,null,null,null,null,32,32,null,null,null,null,null,null,null,null,null,64,19]
[null,"CORBELLA PIERO",1954,"SC La Recastello","SC Unicredit MI",45,null,null,null,null,null,null,null,null,null,null,null,null,null,null,null,null,null,null,null,null,45,20]
[]
[null,"Super 60","Anno","Società Old Stars","Società Fisi","Temù","Borno","Borno "," Gerola"," Gerola","Aprica","Aprica","Comb.Aprica","Lizzola","Lizzola","Aprica","Aprica","Temu","Chiesa","Chiesa","Chiesa","Comb.Chiesa","Tonale","Tonale","Comb.Tonale","Bonus","Totale","Classifica"]
[null,"dal 1958 al 1962"]
[null,"POMONI FAUSTO",1961,"SC Ski Mountain","SC Valli del Bitto",100,100,100,80,80,60,80,80,50,50,80,80,80,100,50,50,50,80,80,80,60,1470,1]
[null,"MIGLIORATI SERGIO",1959,"SC La Recastello","SC Presolana M.Pora",null,null,null,null,null,100,100,100,80,100,null,null,100,80,40,60,45,60,60,60,30,{"$f":"SUM(F140:Z140)","v":1015},2]
[null,"TOMBINI P.ANGELO",1960,"SC Ski Mountain","SC Ski Mountain",80,60,50,40,45,45,60,60,60,45,45,50,60,60,32,32,32,50,50,50,60,1004,3]
[null,"VAINI GUIDO",1958,"SC Ski Mountain","SC Ski Mountain",60,40,36,29,40,29,32,32,36,36,36,36,32,40,22,20,22,29,40,32,60,{"$f":"SUM(F142:Z142)-T142-U142","v":697},4]
[null,"FAZZINI AMOS",1960,"SC Ski Mountain","SC Alta Valsassina",null,null,null,100,100,null,null,null,null,null,100,100,null,null,100,80,80,null,null,null,10,{"$f":"SUM(F143:Z143)","v":670},5]
[null,"BORDAZZI SERGIO",1958,"SC La Recastello",null,null,45,45,36,36,32,29,36,32,32,32,29,45,null,24,22,24,26,29,29,60,643,6]
[null,"ORIO SERGIO",1958,"SC Ski Mountain","SC STT Competition",null,null,null,60,60,80,1,1,null,null,60,60,null,null,null,null,null,100,100,100,10,632,7]
[null,"ZUCCHELLI MARCO",1959,"SC La Recastello","SC Orezzo",null,null,null,null,null,40,50,45,40,80,50,45,null,null,36,29,29,36,32,36,30,578,8]
[null,"GALIZZI OSCAR",1960,"SC Ski Mountain",null,null,80,80,null,null,36,40,40,100,60,null,null,null,null,null,null,null,40,45,45,10,576,9]
[null,"POROTTO MARCO",1962,"SC Ski Mountain",null,null,50,60,50,50,1,36,1,null,null,40,40,50,50,26,24,26,null,null,null,30,534,10]
[null,"CIAPONI FABIO",1960,"SC Cernobbio","SC Sport Due",null,36,32,32,29,26,1,1,29,29,29,32,null,null,20,18,20,45,1,1,30,411,11]
[null,"PEZZOLI GIACOMO",1961,"SC La Recastello",null,50,32,1,26,1,null,null,null,null,null,26,26,40,36,18,16,18,24,26,26,30,396,12]
[null,"ROSSI MARCO",1962,"SC Ski Mountain","SC La Neve",null,26,29,22,26,24,26,29,null,null,24,24,null,null,16,15,16,20,22,22,30,371,13]
[null,"ASTI MASSIMO",1962,"SC Ski Mountain","SC La Neve",null,null,null,null,null,null,null,null,null,null,null,null,null,null,80,100,100,null,null,null,null,280,14]
[null,"ROSSI PAOLO",1962,"SC La Recastello","SC Rovetta",null,null,null,null,null,50,45,50,null,null,null,null,null,null,null,null,null,32,36,40,null,253,15]
[null,"COLOMBO STEFANO",1961,"SC Ski Mountain","SC Ski Mountain",null,null,null,null,null,22,null,1,null,null,null,null,36,null,15,14,15,22,24,24,10,183,16]
[null,"DONATI ADRIANO",1958,"SC Ski Mountain","SC Snow Eagle",null,null,null,null,null,null,null,null,null,null,null,null,null,null,60,45,60,null,null,null,null,165,17]
[null,"GALBUSERA GUIDO",1958,"SC Cernobbio","SC Snow Eagle",null,null,null,null,null,null,null,null,null,null,null,null,null,45,29,36,36,null,null,null,null,146,18]
[null,"GUERCI MARCO",1959,"SC Ski Mountain","SC Radici",null,null,null,null,null,null,null,null,null,null,null,null,null,null,45,40,40,null,null,null,null,125,19]
[null,"CARMINI STEFANO",1961,"SC Ski Mountain","SC Temi Milano",45,29,40,null,null,null,null,null,null,null,null,null,null,null,null,null,null,null,null,null,null,114,20]
[null,"BARTESAGHI CARLO",1959,"SC Cernobbio","SC Erba",null,null,null,45,32,null,null,null,null,null,null,null,null,null,1,26,1,null,null,null,null,105,21]
[null,"BANFI LUCA",1959,"SC Ski Mountain","SC Ski Mountain",null,null,null,null,null,null,null,null,45,40,null,null,null,null,null,null,null,null,null,null,null,85,22]
[null,"LABAGNI LUCA",1960,"SC La Recastello",null,null,null,null,null,null,null,null,null,26,26,null,null,null,null,null,null,null,null,null,null,null,52,23]
[null,"MARTINELLI ANTONIO",1959,"SC Cernobbio","SC Valli del Bitto",null,null,null,24,null,null,null,null,null,null,null,null,null,null,null,null,null,null,null,null,null,24,24]
[]
[null,"Super 55","Anno","Società Old Stars","Società Fisi","Temù","Borno","Borno "," Gerola"," Gerola","Aprica","Aprica","Comb.Aprica","Lizzola","Lizzola","Aprica","Aprica","Temu","Chiesa","Chiesa","Chiesa","Comb.Chiesa","Tonale","Tonale","Comb.Tonale","Bonus","Totale","Classifica"]
[null,"dal 1963 al 1967"]
[null,"PLONA MARCO",1966,"SC Ski Mountain","SC Aprica",80,null,null,80,null,100,100,100,null,null,100,100,100,100,100,80,80,100,80,100,30,{"$f":"SUM(F166:Z166)","v":1430},1]
[null,"MULAZZI GIANNI",1966,"SC Ski Mountain","SC Enjoy SkiTeam",100,100,100,100,100,null,null,null,100,1,80,80,null,null,60,60,60,null,null,null,30,971,2]
[null,"CANCLINI DAVIDE",1963,"SC Cernobbio","SC Retike Ski",null,45,50,40,45,32,36,40,45,45,45,45,80,60,36,36,36,50,50,50,60,926,3]
[null,"COLOMBO STEFANO",1966,"SC Ski Mountain","SC Cristal Ski",null,60,80,50,80,60,60,80,60,100,60,50,null,null,40,40,40,null,null,null,30,890,4]
[null,"MAGGIONI ACHILLE",1965,"SC Ski Mountain","SC Ski Race Camp",null,null,null,null,null,45,50,50,null,null,50,60,null,null,50,45,45,null,null,null,10,405,5]
[null,"ZUGNONI ENEA",1965,"SC Cernobbio",null,50,null,null,45,50,40,40,45,50,50,null,null,null,null,null,null,null,null,null,null,10,380,6]
[null,"SALVADORI MARCO",1963,"SC Cernobbio","SC Stage Master",60,50,60,60,60,null,null,null,null,null,null,null,null,null,null,null,null,null,null,null,10,300,7]
[null,"MENOTTI ALBERTO",1967,"SC Ski Mountain","SC Albavilla",null,null,null,null,null,null,null,null,null,null,null,null,null,null,80,100,100,null,null,null,null,280,8]
[null,"GRANATA ALESSANDRO",1966,"SC Ski Mountain","SC Piacenza Ski T.",null,null,null,null,null,null,null,null,null,null,null,null,null,null,null,null,null,80,100,80,null,260,9]
[null,"MAGONI OSCAR",1967,"SC Ski Mountain",null,null,null,null,null,null,null,null,null,80,80,null,null,null,80,null,null,null,null,null,null,null,240,10]
[null,"SALVETTI ROMEO",1963,"SC Ski Mountain","SC Ski Race Camp",null,null,null,null,null,80,1,1,null,null,null,null,null,null,45,50,50,null,null,null,null,227,11]
[null,"ALBERTINI FRANCO",1965,"SC Ski Mountain","SC Zanetti Goggi",null,null,null,null,null,50,80,60,null,null,null,null,null,null,null,null,null,null,null,null,null,190,12]
[null,"REMONDINI ELIO",1964,"SC Ski Mountain","SC Unicredit",null,null,null,null,null,null,null,null,null,null,null,null,null,null,null,null,null,60,60,60,null,180,13]
[null,"CANTONI DAVIDE",1967,"SC Cernobbio",null,null,null,null,32,36,null,null,null,null,null,null,null,null,null,32,32,32,null,null,null,null,164,14]
[null,"ZANETTI MATTEO ",1964,"SC Ski Mountain","SC Zanetti Goggi",null,80,1,null,null,null,null,null,1,60,null,null,null,null,null,null,null,null,null,null,null,142,15]
[null,"TAVECCHIO PIETRO",1965,"SC Cernobbio","SC Erba",null,null,null,36,40,null,null,null,null,null,null,null,null,null,null,null,null,null,null,null,null,76,16]
[null,"MERELLI CLAUDIO",1964,"GSA Marinelli",null,null,null,null,null,null,1,45,1,null,null,null,null,null,null,null,null,null,null,null,null,null,47,17]
[null,"MARIANI ANDREA",1966,"SC Ski Mountain","SC Cassano M.",null,null,null,null,null,36,1,1,null,null,null,null,null,null,null,null,null,null,null,null,null,38,18]
[]
[null,"Super 50","Anno","Società Old Stars","Società Fisi","Temù","Borno","Borno "," Gerola"," Gerola","Aprica","Aprica","Comb.Aprica","Lizzola","Lizzola","Aprica","Aprica","Temu","Chiesa","Chiesa","Chiesa","Comb.Chiesa","Tonale","Tonale","Comb.Tonale","Bonus","Totale","Classifica"]
[null,"dal 1968 al 1973"]
[null,"CIAPONI WALTER",1969,"SC Cernobbio","SC Ski Mountain",null,100,100,100,80,100,45,45,100,100,100,100,null,null,100,100,100,100,80,100,60,{"$f":"SUM(F187:Z187)","v":1610},1]
[null,"PERLINI CRISTIAN",1971,"SC Cernobbio",null,null,null,null,60,60,60,80,80,60,60,80,80,null,null,80,80,80,80,60,80,30,1110,2]
[null,"GERLETTI ALBERTO",1970,"SC Cernobbio",null,null,null,null,36,36,45,50,50,null,null,null,null,null,null,60,60,60,60,50,60,10,577,3]
[null,"ZUGNONI MASSIMO",1968,"SC Cernobbio",null,null,null,null,80,100,80,100,100,null,null,null,null,null,null,null,null,null,null,null,null,null,460,4]
[null,"CAMPOLO TONY",1968,"SC Ski Mountain",40,80,80,80,45,50,null,null,null,null,null,null,null,null,null,null,null,null,null,null,null,10,345,5]
[null,"MALINVERNO NICOLA",1968,"SC Cernobbio",null,null,null,null,40,40,null,null,null,null,null,null,null,null,null,50,50,50,null,null,null,null,230,6]
[null,"GIUDES CRISTIAN",1969,"SC Ski Mountain",null,null,null,null,null,null,50,60,60,null,null,null,null,null,null,null,null,null,null,null,null,null,170,7]
[null,"MONICO FRANCESCO",1968,"SC Ski Mountain","SC Enjoy SkiTeam",null,null,null,null,null,null,null,null,80,80,null,null,null,null,null,null,null,null,null,null,null,160,8]
[null,"DE TOMA MARCO",1969,"SC Ski Mountain","SC Enjoy SkiTeam",null,1,null,null,null,null,null,null,null,null,null,null,null,null,null,null,null,1,100,1,null,103,9]
[null,"CANTONI DAVIDE",1967,"SC Cernobbio","SC Cernobbio",100,null,null,null,null,null,null,null,null,null,null,null,null,null,null,null,null,null,null,null,null,100,10]
[null,"LIRONI ANTONIO",1972,"SC Cernobbio",null,null,null,null,50,45,null,null,null,null,null,null,null,null,null,null,null,null,null,null,null,null,95,11]
[]
[null,"Junior","Anno","Società Old Stars","Società Fisi","Temù","Borno","Borno "," Gerola"," Gerola","Aprica","Aprica","Comb.Aprica","Lizzola","Lizzola","Aprica","Aprica","Temu","Chiesa","Chiesa","Chiesa","Comb.Chiesa","Tonale","Tonale","Comb.Tonale","Bonus","Totale","Classifica"]
[null,"dal 1974 al 2003"]
[null,"CIAPONI SIMONE",1994,"SC Cernobbio","SC Sport Due",null,null,null,100,100,100,100,100,null,null,100,100,null,null,80,80,80,null,null,null,10,{"$f":"SUM(F201:Z201)","v":950},1]
[null,"STREPPONI LUIGI",1977,"SC Ski Mountain",null,null,null,null,null,null,80,80,80,null,null,80,80,null,null,null,null,null,null,null,null,null,400,2]
[null,"ZECCA GIUSEPPE",1983,"SC Cernobbio","SC Valli del Bitto",null,null,null,80,80,null,null,null,null,null,null,null,null,null,60,60,60,null,null,null,null,340,3]
[null,"MAXENTI FABIO",1982,"SC Cernobbio","SC Valli del Bitto",null,null,null,null,null,null,null,null,null,null,null,null,null,null,100,100,100,null,null,null,null,300,4]
[null,"MACALLI STEFANO",1978,"SC La Recastello",null,null,null,null,null,null,null,null,null,null,null,null,null,100,100,null,null,null,null,null,null,null,200,5]
[null,"DANIELLI ALESSANDRO",1977,"SC Cernobbio",null,null,null,null,60,60,null,null,null,null,null,null,null,null,null,null,null,null,null,null,null,null,120,6]